{"text_format":"1","workbook":"xlsx","n_sheets":1,"sheets":["LP873xxx"],"not_rendered":{"charts":0,"images":0,"macros":1,"external_links":0,"defined_names":0,"comments":0,"pivot_tables":0},"unopened":[],"bounds":{"document_bytes":16777216,"sheet_cells":100000,"rows_first":2000,"rows_last":500,"rows_between":2000,"halvings":0,"cell_chars":16384,"cell_head_chars":4096},"cells_cut":0,"cells_raw":0,"read":"whole","date_system":"1900"}

{"sheet":"LP873xxx","index":0,"n_rows":240,"n_cols":71,"rows_kept":240,"cut":false,"hidden":false,"merged":[[44,1,52,1],[54,1,60,1],[62,1,65,1],[67,1,83,1],[4,1,10,1],[12,1,19,1],[21,1,27,1],[29,1,32,1],[34,1,37,1],[39,1,42,1],[2,37,2,41],[2,57,2,63],[2,65,2,68],[2,43,2,55],[2,7,2,14],[2,16,2,27],[2,29,2,35]]}
[]
[null,"Customer",null,"Application",null,"Date"]
[null,null,null,null,null,null,null,"Configuration",null,null,null,null,null,null,null,null,"Buck0/1\n",null,null,null,null,null,null,null,null,null,null,null,null,"LDO0/1\n",null,null,null,null,null,null,null,"PLL",null,null,null,null,null,"GPIOs",null,null,null,null,null,null,null,null,null,null,null,null,null,"PGOOD",null,null,null,null,null,null,null,"Others",null,null,null,null,"Interrupts\nMasks"]
[null,null,null,{"$f":"CONCATENATE(\"LP873\",IF(OR(LEFT(D19,3)=\"3.5\",LEFT(D19,3)=\"4.0\",LEFT(D27,3)=\"3.5\",LEFT(D27,3)=\"4.0\"),3,2),RIGHT(D8,2),\"RHDRQ1\")","v":"LP8733__RHDRQ1"},"Options","Comments",null,"Buck Configuration","I2C ID",null,"Typical Switching Frequency","OTP ID","Set Hs-Mode I2C by default","Startup delay range","Shutdown delay range",null,"Vout",null,"Control","Startup delay",null,"Shutdown delay",null,"Force PWM","Force Multiphase","Peak Current limit",null,"Slew-rate",null,"Vout",null,"Control","Startup delay",null,"Shutdown delay",null,null,"External Clock","Clock Frequency Range",null,"CLKIN Pull Down resistor","PLL Mode",null,"GPO2 or CLKIN use","GPO Control and state","GPO2 Control and state","GPO output type","GPO2 output type","GPO Startup delay",null,"GPO Shutdown delay",null,"GPO2 Startup delay",null,"GPO2 Shutdown delay",null,null,"PGOOD Monitoring","PGOOD Thresholds for Bucks","PGOOD Thresholds for LDOs","Thermal Warning for PGOOD","PGOOD operating mode","PGOOD signal mode","PGOOD output and polarity",null,"Thermal Warning level","Input Overvoltage Protection","Spread spectrum with internal RC","EN Pull Down resistor"]
[null,"Configuration","Buck Configuration","1+1","2-ph / 1+1",null,null,"1+1",{"$f":"CONCATENATE(\"0x\",DEC2HEX(J5))","v":"0x8"},8,"2 MHz",null,"Yes","15 ms","15 ms",null,{"$f":"CONCATENATE(R5,\" mV\")","v":"700 mV"},700,"EN",{"$f":"IF($D$10=\"7.5 ms\",T22,T39)","v":"0 ms"},null,{"$f":"IF($D$11=\"7.5 ms\",V22,V39)","v":"0 ms"},null,"Yes","Yes",{"$f":"CONCATENATE(TEXT(AA5,\"0.0\"),\" A\")","v":"1.5 A"},1.5,"0.47 mV/us",null,{"$f":"CONCATENATE(AE5,\" mV\")","v":"800 mV"},800,"EN",{"$f":"IF($D$10=\"7.5 ms\",AG22,AG39)","v":"0 ms"},null,{"$f":"IF($D$11=\"7.5 ms\",AI22,AI39)","v":"0 ms"},null,null,"Yes",{"$f":"CONCATENATE(AN5,\" MHz\")","v":"1 MHz"},1,"Enabled","Always",null,"GPO2","EN, high","EN, high","PP","PP",{"$f":"IF($D$10=\"7.5 ms\",AW22,AW39)","v":"0 ms"},null,{"$f":"IF($D$11=\"7.5 ms\",AY22,AY39)","v":"0 ms"},null,{"$f":"IF($D$10=\"7.5 ms\",BA22,BA39)","v":"0 ms"},null,{"$f":"IF($D$11=\"7.5 ms\",BC22,BC39)","v":"0 ms"},null,null,"No","Window","Window","Yes","UNUSUAL","Status","OD, high",null,"140 C","Enabled","Enabled","Yes",null,"Masked"]
[null,null,"I2C ID","0x60","7-bit address, typically 0x60 or 0x61",null,null,"2-ph","0x9",9,"3 MHz",null,"No","7.5 ms","7.5 ms",null,{"$f":"CONCATENATE(R6,\" mV\")","v":"710 mV"},710,"I2C",{"$f":"IF($D$10=\"7.5 ms\",T23,T40)","v":"0.5 ms"},null,{"$f":"IF($D$11=\"7.5 ms\",V23,V40)","v":"0.5 ms"},null,"No","No",{"$f":"CONCATENATE(TEXT(AA6,\"0.0\"),\" A\")","v":"2.0 A"},2,"0.94 mV/us",null,{"$f":"CONCATENATE(AE6,\" mV\")","v":"900 mV"},900,"I2C",{"$f":"IF($D$10=\"7.5 ms\",AG23,AG40)","v":"0.5 ms"},null,{"$f":"IF($D$11=\"7.5 ms\",AI23,AI40)","v":"0.5 ms"},null,null,"No",{"$f":"CONCATENATE(AN6,\" MHz\")","v":"2 MHz"},2,"Disabled","Not Used",null,"CLKIN","I2C, high","I2C, high","OD","OD",{"$f":"IF($D$10=\"7.5 ms\",AW23,AW40)","v":"0.5 ms"},null,{"$f":"IF($D$11=\"7.5 ms\",AY23,AY40)","v":"0.5 ms"},null,{"$f":"IF($D$10=\"7.5 ms\",BA23,BA40)","v":"0.5 ms"},null,{"$f":"IF($D$11=\"7.5 ms\",BC23,BC40)","v":"0.5 ms"},null,null,"B0","Undervoltage","Undervoltage","No","UNVALID","Latched","OD, low",null,"125 C","Disabled","Disabled","No",null,"Unmasked"]
[null,null,"Typical Switching Frequency","2 MHz","2, 3 or 4 MHz",null,null,null,"0xA",10,"4MHz",null,null,null,null,null,"720 mV",720,null,"1 ms",null,"1 ms",null,null,null,"2.5 A",2.5,"1.9 mV/us",null,"1000 mV",1000,null,"1 ms",null,"1 ms",null,null,null,"3 MHz",3,null,null,null,null,"I2C, low","I2C, low",null,null,"1 ms",null,"1 ms",null,"1 ms",null,"1 ms",null,null,"B1",null,null,null,null,null,"PP, high"]
[null,null,"OTP ID","0x__","Defined by TI",null,null,null,"0xB",11,null,null,null,null,null,null,"730 mV",730,null,"1.5 ms",null,"1.5 ms",null,null,null,"3.0 A",3,"3.8 mV/us",null,"1100 mV",1100,null,"1.5 ms",null,"1.5 ms",null,null,null,"4 MHz",4,null,null,null,null,null,null,null,null,"1.5 ms",null,"1.5 ms",null,"1.5 ms",null,"1.5 ms",null,null,"B1, B0",null,null,null,null,null,"PP, low"]
[null,null,"Set Hs-Mode I2C by default","No","Yes / No",null,null,null,"0xC",12,null,null,null,null,null,null,"735 mV",735,null,"2 ms",null,"2 ms",null,null,null,"3.5 A",3.5,"7.5 mV/us",null,"1200 mV",1200,null,"2 ms",null,"2 ms",null,null,null,"5 MHz",5,null,null,null,null,null,null,null,null,"2 ms",null,"2 ms",null,"2 ms",null,"2 ms",null,null,"L0"]
[null,null,"Startup delay range","7.5 ms","15ms / 7.5ms (15ms with 1ms steps or 7.5ms with 0.5ms steps)",null,null,null,"0xD",13,null,null,null,null,null,null,"740 mV",740,null,"2.5 ms",null,"2.5 ms",null,null,null,"4.0 A",4,"10 mV/us",null,"1300 mV",1300,null,"2.5 ms",null,"2.5 ms",null,null,null,"6 MHz",6,null,null,null,null,null,null,null,null,"2.5 ms",null,"2.5 ms",null,"2.5 ms",null,"2.5 ms",null,null,"L0, B0"]
[null,null,"Shutdown delay range","7.5 ms","15ms / 7.5ms (15ms with 1ms steps or 7.5ms with 0.5ms steps)",null,null,null,"0xE",14,null,null,null,null,null,null,"745 mV",745,null,"3 ms",null,"3 ms",null,null,null,null,null,null,null,"1400 mV",1400,null,"3 ms",null,"3 ms",null,null,null,"7 MHz",7,null,null,null,null,null,null,null,null,"3 ms",null,"3 ms",null,"3 ms",null,"3 ms",null,null,"L0, B1"]
[null,null,null,null,null,null,null,null,"0xF",15,null,null,null,null,null,null,"750 mV",750,null,"3.5 ms",null,"3.5 ms",null,null,null,null,null,null,null,"1500 mV",1500,null,"3.5 ms",null,"3.5 ms",null,null,null,"8 MHz",8,null,null,null,null,null,null,null,null,"3.5 ms",null,"3.5 ms",null,"3.5 ms",null,"3.5 ms",null,null,"L0, B1, B0"]
[null,"Buck0\n","Vout","700 mV","700...3360 mV",null,null,null,"0x10",16,null,null,null,null,null,null,"755 mV",755,null,"4 ms",null,"4 ms",null,null,null,null,null,null,null,"1600 mV",1600,null,"4 ms",null,"4 ms",null,null,null,"9 MHz",9,null,null,null,null,null,null,null,null,"4 ms",null,"4 ms",null,"4 ms",null,"4 ms",null,null,"L1"]
[null,null,"Control","EN","EN / I2C",null,null,null,"0x11",17,null,null,null,null,null,null,"760 mV",760,null,"4.5 ms",null,"4.5 ms",null,null,null,null,null,null,null,"1700 mV",1700,null,"4.5 ms",null,"4.5 ms",null,null,null,"10 MHz",10,null,null,null,null,null,null,null,null,"4.5 ms",null,"4.5 ms",null,"4.5 ms",null,"4.5 ms",null,null,"L1, B0"]
[null,null,"Startup delay","0 ms","0...15 ms / 0...7.5ms with EN signal",null,{"$f":"IF(OR(AND($D$10=\"15 ms\",RIGHT(LEFT(D15,2),1)=\".\"),AND($D$10=\"7.5 ms\",OR(LEFT(D15,1)=\"8\",LEFT(D15,1)=\"9\",LEFT(D15,2)=\"10\",LEFT(D15,2)=\"11\",LEFT(D15,2)=\"12\",LEFT(D15,2)=\"13\",LEFT(D15,2)=\"14\",LEFT(D15,2)=\"15\"))),\"INVALID\",\"\")","v":""},null,"0x12",18,null,null,null,null,null,null,"765 mV",765,null,"5 ms",null,"5 ms",null,null,null,null,null,null,null,"1800 mV",1800,null,"5 ms",null,"5 ms",null,null,null,"11 MHz",11,null,null,null,null,null,null,null,null,"5 ms",null,"5 ms",null,"5 ms",null,"5 ms",null,null,"L1, B1"]
[null,null,"Shutdown delay","0 ms","0...15 ms / 0...7.5ms with EN signal",null,{"$f":"IF(OR(AND($D$11=\"15 ms\",RIGHT(LEFT(D16,2),1)=\".\"),AND($D$11=\"7.5 ms\",OR(LEFT(D16,1)=\"8\",LEFT(D16,1)=\"9\",LEFT(D16,2)=\"10\",LEFT(D16,2)=\"11\",LEFT(D16,2)=\"12\",LEFT(D16,2)=\"13\",LEFT(D16,2)=\"14\",LEFT(D16,2)=\"15\"))),\"INVALID\",\"\")","v":""},null,"0x13",19,null,null,null,null,null,null,"770 mV",770,null,"5.5 ms",null,"5.5 ms",null,null,null,null,null,null,null,"1900 mV",1900,null,"5.5 ms",null,"5.5 ms",null,null,null,"12 MHz",12,null,null,null,null,null,null,null,null,"5.5 ms",null,"5.5 ms",null,"5.5 ms",null,"5.5 ms",null,null,"L1, B1, B0"]
[null,null,"Force PWM","Yes","Yes / No",null,null,null,"0x14",20,null,null,null,null,null,null,"775 mV",775,null,"6 ms",null,"6 ms",null,null,null,null,null,null,null,"2000 mV",2000,null,"6 ms",null,"6 ms",null,null,null,"13 MHz",13,null,null,null,null,null,null,null,null,"6 ms",null,"6 ms",null,"6 ms",null,"6 ms",null,null,"L1, L0"]
[null,null,"Force Multiphase","No","Yes / No",null,null,null,"0x15",21,null,null,null,null,null,null,"780 mV",780,null,"6.5 ms",null,"6.5 ms",null,null,null,null,null,null,null,"2100 mV",2100,null,"6.5 ms",null,"6.5 ms",null,null,null,"14 MHz",14,null,null,null,null,null,null,null,null,"6.5 ms",null,"6.5 ms",null,"6.5 ms",null,"6.5 ms",null,null,"L1, L0, B0"]
[null,null,"Peak Current limit","4.0 A","1.5...4.0 A, 0.5 A steps",null,null,null,"0x16",22,null,null,null,null,null,null,"785 mV",785,null,"7 ms",null,"7 ms",null,null,null,null,null,null,null,"2200 mV",2200,null,"7 ms",null,"7 ms",null,null,null,"15 MHz",15,null,null,null,null,null,null,null,null,"7 ms",null,"7 ms",null,"7 ms",null,"7 ms",null,null,"L1, L0, B1"]
[null,null,"Slew-rate","3.8 mV/us","0.47…10 mV/us",null,null,null,"0x17",23,null,null,null,null,null,null,"790 mV",790,null,"7.5 ms",null,"7.5 ms",null,null,null,null,null,null,null,"2300 mV",2300,null,"7.5 ms",null,"7.5 ms",null,null,null,"16 MHz",16,null,null,null,null,null,null,null,null,"7.5 ms",null,"7.5 ms",null,"7.5 ms",null,"7.5 ms",null,null,"L1, L0, B1, B0"]
[null,null,null,null,null,null,null,null,"0x18",24,null,null,null,null,null,null,"795 mV",795,null,null,null,null,null,null,null,null,null,null,null,"2400 mV",2400,null,null,null,null,null,null,null,"17 MHz",17]
[null,"Buck1\n","Vout","700 mV","700...3360 mV",null,null,null,"0x19",25,null,null,null,null,null,null,"800 mV",800,null,{"$f":"CONCATENATE(U22,\" ms\")","v":"0 ms"},0,{"$f":"CONCATENATE(W22,\" ms\")","v":"0 ms"},0,null,null,null,null,null,null,"2500 mV",2500,null,{"$f":"CONCATENATE(AH22,\" ms\")","v":"0 ms"},0,{"$f":"CONCATENATE(AJ22,\" ms\")","v":"0 ms"},0,null,null,"18 MHz",18,null,null,null,null,null,null,null,null,{"$f":"CONCATENATE(AX22,\" ms\")","v":"0 ms"},0,{"$f":"CONCATENATE(AZ22,\" ms\")","v":"0 ms"},0,{"$f":"CONCATENATE(BB22,\" ms\")","v":"0 ms"},0,{"$f":"CONCATENATE(BD22,\" ms\")","v":"0 ms"},0]
[null,null,"Control","EN","EN / I2C",null,null,null,"0x1A",26,null,null,null,null,null,null,"805 mV",805,null,{"$f":"CONCATENATE(U23,\" ms\")","v":"0.5 ms"},0.5,"0.5 ms",0.5,null,null,null,null,null,null,"2600 mV",2600,null,{"$f":"CONCATENATE(AH23,\" ms\")","v":"0.5 ms"},0.5,{"$f":"CONCATENATE(AJ23,\" ms\")","v":"0.5 ms"},0.5,null,null,"19 MHz",19,null,null,null,null,null,null,null,null,{"$f":"CONCATENATE(AX23,\" ms\")","v":"0.5 ms"},0.5,{"$f":"CONCATENATE(AZ23,\" ms\")","v":"0.5 ms"},0.5,{"$f":"CONCATENATE(BB23,\" ms\")","v":"0.5 ms"},0.5,{"$f":"CONCATENATE(BD23,\" ms\")","v":"0.5 ms"},0.5]
[null,null,"Startup delay","0 ms","0...15 ms / 0...7.5ms with EN signal",null,{"$f":"IF(OR(AND($D$10=\"15 ms\",RIGHT(LEFT(D24,2),1)=\".\"),AND($D$10=\"7.5 ms\",OR(LEFT(D24,1)=\"8\",LEFT(D24,1)=\"9\",LEFT(D24,2)=\"10\",LEFT(D24,2)=\"11\",LEFT(D24,2)=\"12\",LEFT(D24,2)=\"13\",LEFT(D24,2)=\"14\",LEFT(D24,2)=\"15\"))),\"INVALID\",\"\")","v":""},null,"0x1B",27,null,null,null,null,null,null,"810 mV",810,null,"1 ms",1,"1 ms",1,null,null,null,null,null,null,"2700 mV",2700,null,{"$f":"CONCATENATE(AH24,\" ms\")","v":"1 ms"},1,{"$f":"CONCATENATE(AJ24,\" ms\")","v":"1 ms"},1,null,null,"20 MHz",20,null,null,null,null,null,null,null,null,{"$f":"CONCATENATE(AX24,\" ms\")","v":"1 ms"},1,"1 ms",1,{"$f":"CONCATENATE(BB24,\" ms\")","v":"1 ms"},1,"1 ms",1]
[null,null,"Shutdown delay","0 ms","0...15 ms / 0...7.5ms with EN signal",null,{"$f":"IF(OR(AND($D$11=\"15 ms\",RIGHT(LEFT(D25,2),1)=\".\"),AND($D$11=\"7.5 ms\",OR(LEFT(D25,1)=\"8\",LEFT(D25,1)=\"9\",LEFT(D25,2)=\"10\",LEFT(D25,2)=\"11\",LEFT(D25,2)=\"12\",LEFT(D25,2)=\"13\",LEFT(D25,2)=\"14\",LEFT(D25,2)=\"15\"))),\"INVALID\",\"\")","v":""},null,"0x1C",28,null,null,null,null,null,null,"815 mV",815,null,"1.5 ms",1.5,"1.5 ms",1.5,null,null,null,null,null,null,"2800 mV",2800,null,{"$f":"CONCATENATE(AH25,\" ms\")","v":"1.5 ms"},1.5,{"$f":"CONCATENATE(AJ25,\" ms\")","v":"1.5 ms"},1.5,null,null,"21 MHz",21,null,null,null,null,null,null,null,null,{"$f":"CONCATENATE(AX25,\" ms\")","v":"1.5 ms"},1.5,"1.5 ms",1.5,{"$f":"CONCATENATE(BB25,\" ms\")","v":"1.5 ms"},1.5,"1.5 ms",1.5]
[null,null,"Force PWM","Yes","Yes / No",null,null,null,"0x1D",29,null,null,null,null,null,null,"820 mV",820,null,"2 ms",2,"2 ms",2,null,null,null,null,null,null,"2900 mV",2900,null,{"$f":"CONCATENATE(AH26,\" ms\")","v":"2 ms"},2,{"$f":"CONCATENATE(AJ26,\" ms\")","v":"2 ms"},2,null,null,"22 MHz",22,null,null,null,null,null,null,null,null,{"$f":"CONCATENATE(AX26,\" ms\")","v":"2 ms"},2,"2 ms",2,{"$f":"CONCATENATE(BB26,\" ms\")","v":"2 ms"},2,"2 ms",2]
[null,null,"Peak Current limit","4.0 A","1.5...4.0 A, 0.5 A steps",null,null,null,"0x1E",30,null,null,null,null,null,null,"825 mV",825,null,"2.5 ms",2.5,"2.5 ms",2.5,null,null,null,null,null,null,"3000 mV",3000,null,{"$f":"CONCATENATE(AH27,\" ms\")","v":"2.5 ms"},2.5,{"$f":"CONCATENATE(AJ27,\" ms\")","v":"2.5 ms"},2.5,null,null,"23 MHz",23,null,null,null,null,null,null,null,null,{"$f":"CONCATENATE(AX27,\" ms\")","v":"2.5 ms"},2.5,"2.5 ms",2.5,{"$f":"CONCATENATE(BB27,\" ms\")","v":"2.5 ms"},2.5,"2.5 ms",2.5]
[null,null,"Slew-rate","3.8 mV/us","0.47…10 mV/us",null,null,null,"0x1F",31,null,null,null,null,null,null,"830 mV",830,null,"3 ms",3,"3 ms",3,null,null,null,null,null,null,"3100 mV",3100,null,{"$f":"CONCATENATE(AH28,\" ms\")","v":"3 ms"},3,{"$f":"CONCATENATE(AJ28,\" ms\")","v":"3 ms"},3,null,null,"24 MHz",24,null,null,null,null,null,null,null,null,{"$f":"CONCATENATE(AX28,\" ms\")","v":"3 ms"},3,"3 ms",3,{"$f":"CONCATENATE(BB28,\" ms\")","v":"3 ms"},3,"3 ms",3]
[null,null,null,null,null,null,null,null,"0x20",32,null,null,null,null,null,null,"835 mV",835,null,"3.5 ms",3.5,"3.5 ms",3.5,null,null,null,null,null,null,"3200 mV",3200,null,{"$f":"CONCATENATE(AH29,\" ms\")","v":"3.5 ms"},3.5,{"$f":"CONCATENATE(AJ29,\" ms\")","v":"3.5 ms"},3.5,null,null,null,null,null,null,null,null,null,null,null,null,{"$f":"CONCATENATE(AX29,\" ms\")","v":"3.5 ms"},3.5,"3.5 ms",3.5,{"$f":"CONCATENATE(BB29,\" ms\")","v":"3.5 ms"},3.5,"3.5 ms",3.5]
[null,"LDO0\n","Vout","800 mV","800...3300 mV, 100mV steps",null,null,null,"0x21",33,null,null,null,null,null,null,"840 mV",840,null,"4 ms",4,"4 ms",4,null,null,null,null,null,null,"3300 mV",3300,null,{"$f":"CONCATENATE(AH30,\" ms\")","v":"4 ms"},4,{"$f":"CONCATENATE(AJ30,\" ms\")","v":"4 ms"},4,null,null,null,null,null,null,null,null,null,null,null,null,{"$f":"CONCATENATE(AX30,\" ms\")","v":"4 ms"},4,"4 ms",4,{"$f":"CONCATENATE(BB30,\" ms\")","v":"4 ms"},4,"4 ms",4]
[null,null,"Control","EN","EN / I2C",null,null,null,"0x22",34,null,null,null,null,null,null,"845 mV",845,null,"4.5 ms",4.5,"4.5 ms",4.5,null,null,null,null,null,null,null,null,null,{"$f":"CONCATENATE(AH31,\" ms\")","v":"4.5 ms"},4.5,{"$f":"CONCATENATE(AJ31,\" ms\")","v":"4.5 ms"},4.5,null,null,null,null,null,null,null,null,null,null,null,null,{"$f":"CONCATENATE(AX31,\" ms\")","v":"4.5 ms"},4.5,"4.5 ms",4.5,{"$f":"CONCATENATE(BB31,\" ms\")","v":"4.5 ms"},4.5,"4.5 ms",4.5]
[null,null,"Startup delay","0 ms","0...15 ms / 0...7.5ms with EN signal",null,{"$f":"IF(OR(AND($D$10=\"15 ms\",RIGHT(LEFT(D32,2),1)=\".\"),AND($D$10=\"7.5 ms\",OR(LEFT(D32,1)=\"8\",LEFT(D32,1)=\"9\",LEFT(D32,2)=\"10\",LEFT(D32,2)=\"11\",LEFT(D32,2)=\"12\",LEFT(D32,2)=\"13\",LEFT(D32,2)=\"14\",LEFT(D32,2)=\"15\"))),\"INVALID\",\"\")","v":""},null,"0x23",35,null,null,null,null,null,null,"850 mV",850,null,"5 ms",5,"5 ms",5,null,null,null,null,null,null,null,null,null,{"$f":"CONCATENATE(AH32,\" ms\")","v":"5 ms"},5,{"$f":"CONCATENATE(AJ32,\" ms\")","v":"5 ms"},5,null,null,null,null,null,null,null,null,null,null,null,null,{"$f":"CONCATENATE(AX32,\" ms\")","v":"5 ms"},5,"5 ms",5,{"$f":"CONCATENATE(BB32,\" ms\")","v":"5 ms"},5,"5 ms",5]
[null,null,"Shutdown delay","0 ms","0...15 ms / 0...7.5ms with EN signal",null,{"$f":"IF(OR(AND($D$11=\"15 ms\",RIGHT(LEFT(D33,2),1)=\".\"),AND($D$11=\"7.5 ms\",OR(LEFT(D33,1)=\"8\",LEFT(D33,1)=\"9\",LEFT(D33,2)=\"10\",LEFT(D33,2)=\"11\",LEFT(D33,2)=\"12\",LEFT(D33,2)=\"13\",LEFT(D33,2)=\"14\",LEFT(D33,2)=\"15\"))),\"INVALID\",\"\")","v":""},null,"0x24",36,null,null,null,null,null,null,"855 mV",855,null,"5.5 ms",5.5,"5.5 ms",5.5,null,null,null,null,null,null,null,null,null,{"$f":"CONCATENATE(AH33,\" ms\")","v":"5.5 ms"},5.5,{"$f":"CONCATENATE(AJ33,\" ms\")","v":"5.5 ms"},5.5,null,null,null,null,null,null,null,null,null,null,null,null,{"$f":"CONCATENATE(AX33,\" ms\")","v":"5.5 ms"},5.5,"5.5 ms",5.5,{"$f":"CONCATENATE(BB33,\" ms\")","v":"5.5 ms"},5.5,"5.5 ms",5.5]
[null,null,null,null,null,null,null,null,"0x25",37,null,null,null,null,null,null,"860 mV",860,null,"6 ms",6,"6 ms",6,null,null,null,null,null,null,null,null,null,{"$f":"CONCATENATE(AH34,\" ms\")","v":"6 ms"},6,{"$f":"CONCATENATE(AJ34,\" ms\")","v":"6 ms"},6,null,null,null,null,null,null,null,null,null,null,null,null,{"$f":"CONCATENATE(AX34,\" ms\")","v":"6 ms"},6,"6 ms",6,{"$f":"CONCATENATE(BB34,\" ms\")","v":"6 ms"},6,"6 ms",6]
[null,"LDO1\n","Vout","800 mV","800...3300 mV, 100mV steps",null,null,null,"0x26",38,null,null,null,null,null,null,"865 mV",865,null,"6.5 ms",6.5,"6.5 ms",6.5,null,null,null,null,null,null,null,null,null,{"$f":"CONCATENATE(AH35,\" ms\")","v":"6.5 ms"},6.5,{"$f":"CONCATENATE(AJ35,\" ms\")","v":"6.5 ms"},6.5,null,null,null,null,null,null,null,null,null,null,null,null,{"$f":"CONCATENATE(AX35,\" ms\")","v":"6.5 ms"},6.5,"6.5 ms",6.5,{"$f":"CONCATENATE(BB35,\" ms\")","v":"6.5 ms"},6.5,"6.5 ms",6.5]
[null,null,"Control","EN","EN / I2C",null,null,null,"0x27",39,null,null,null,null,null,null,"870 mV",870,null,"7 ms",7,"7 ms",7,null,null,null,null,null,null,null,null,null,{"$f":"CONCATENATE(AH36,\" ms\")","v":"7 ms"},7,{"$f":"CONCATENATE(AJ36,\" ms\")","v":"7 ms"},7,null,null,null,null,null,null,null,null,null,null,null,null,{"$f":"CONCATENATE(AX36,\" ms\")","v":"7 ms"},7,"7 ms",7,{"$f":"CONCATENATE(BB36,\" ms\")","v":"7 ms"},7,"7 ms",7]
[null,null,"Startup delay","0 ms","0...15 ms / 0...7.5ms with EN signal",null,{"$f":"IF(OR(AND($D$10=\"15 ms\",RIGHT(LEFT(D37,2),1)=\".\"),AND($D$10=\"7.5 ms\",OR(LEFT(D37,1)=\"8\",LEFT(D37,1)=\"9\",LEFT(D37,2)=\"10\",LEFT(D37,2)=\"11\",LEFT(D37,2)=\"12\",LEFT(D37,2)=\"13\",LEFT(D37,2)=\"14\",LEFT(D37,2)=\"15\"))),\"INVALID\",\"\")","v":""},null,{"$f":"CONCATENATE(\"0x\",DEC2HEX(J37))","v":"0x28"},40,null,null,null,null,null,null,"875 mV",875,null,"7.5 ms",7.5,"7.5 ms",7.5,null,null,null,null,null,null,null,null,null,{"$f":"CONCATENATE(AH37,\" ms\")","v":"7.5 ms"},7.5,{"$f":"CONCATENATE(AJ37,\" ms\")","v":"7.5 ms"},7.5,null,null,null,null,null,null,null,null,null,null,null,null,{"$f":"CONCATENATE(AX37,\" ms\")","v":"7.5 ms"},7.5,"7.5 ms",7.5,{"$f":"CONCATENATE(BB37,\" ms\")","v":"7.5 ms"},7.5,"7.5 ms",7.5]
[null,null,"Shutdown delay","0 ms","0...15 ms / 0...7.5ms with EN signal",null,{"$f":"IF(OR(AND($D$11=\"15 ms\",RIGHT(LEFT(D38,2),1)=\".\"),AND($D$11=\"7.5 ms\",OR(LEFT(D38,1)=\"8\",LEFT(D38,1)=\"9\",LEFT(D38,2)=\"10\",LEFT(D38,2)=\"11\",LEFT(D38,2)=\"12\",LEFT(D38,2)=\"13\",LEFT(D38,2)=\"14\",LEFT(D38,2)=\"15\"))),\"INVALID\",\"\")","v":""},null,"0x29",41,null,null,null,null,null,null,"880 mV",880]
[null,null,null,null,null,null,null,null,"0x2A",42,null,null,null,null,null,null,"885 mV",885,null,"0 ms",0,"0 ms",0,null,null,null,null,null,null,null,null,null,{"$f":"CONCATENATE(AH39,\" ms\")","v":"0 ms"},0,{"$f":"CONCATENATE(AJ39,\" ms\")","v":"0 ms"},0,null,null,null,null,null,null,null,null,null,null,null,null,{"$f":"CONCATENATE(AX39,\" ms\")","v":"0 ms"},0,{"$f":"CONCATENATE(AZ39,\" ms\")","v":"0 ms"},0,{"$f":"CONCATENATE(BB39,\" ms\")","v":"0 ms"},0,{"$f":"CONCATENATE(BD39,\" ms\")","v":"0 ms"},0]
[null,"PLL","External Clock","No","Yes / No",null,null,null,"0x2B",43,null,null,null,null,null,null,"890 mV",890,null,"1 ms",1,"1 ms",1,null,null,null,null,null,null,null,null,null,{"$f":"CONCATENATE(AH40,\" ms\")","v":"1 ms"},1,{"$f":"CONCATENATE(AJ40,\" ms\")","v":"1 ms"},1,null,null,null,null,null,null,null,null,null,null,null,null,{"$f":"CONCATENATE(AX40,\" ms\")","v":"1 ms"},1,"1 ms",1,{"$f":"CONCATENATE(BB40,\" ms\")","v":"1 ms"},1,"1 ms",1]
[null,null,"Clock Frequency Range","2 MHz","Nominal 1MHz...24MHz with 1MHz steps, Input frequency range Max -30%...+10% from nominal frequency",null,null,null,"0x2C",44,null,null,null,null,null,null,"895 mV",895,null,"2 ms",2,"2 ms",2,null,null,null,null,null,null,null,null,null,{"$f":"CONCATENATE(AH41,\" ms\")","v":"2 ms"},2,{"$f":"CONCATENATE(AJ41,\" ms\")","v":"2 ms"},2,null,null,null,null,null,null,null,null,null,null,null,null,{"$f":"CONCATENATE(AX41,\" ms\")","v":"2 ms"},2,"2 ms",2,{"$f":"CONCATENATE(BB41,\" ms\")","v":"2 ms"},2,"2 ms",2]
[null,null,"CLKIN Pull Down resistor","Enabled","Enabled / Disabled",null,null,null,"0x2D",45,null,null,null,null,null,null,"900 mV",900,null,"3 ms",3,"3 ms",3,null,null,null,null,null,null,null,null,null,{"$f":"CONCATENATE(AH42,\" ms\")","v":"3 ms"},3,{"$f":"CONCATENATE(AJ42,\" ms\")","v":"3 ms"},3,null,null,null,null,null,null,null,null,null,null,null,null,{"$f":"CONCATENATE(AX42,\" ms\")","v":"3 ms"},3,"3 ms",3,{"$f":"CONCATENATE(BB42,\" ms\")","v":"3 ms"},3,"3 ms",3]
[null,null,"PLL Mode","Not used","CLKIN usage: Always / Not used",null,null,null,"0x2E",46,null,null,null,null,null,null,"905 mV",905,null,"4 ms",4,"4 ms",4,null,null,null,null,null,null,null,null,null,{"$f":"CONCATENATE(AH43,\" ms\")","v":"4 ms"},4,{"$f":"CONCATENATE(AJ43,\" ms\")","v":"4 ms"},4,null,null,null,null,null,null,null,null,null,null,null,null,{"$f":"CONCATENATE(AX43,\" ms\")","v":"4 ms"},4,"4 ms",4,{"$f":"CONCATENATE(BB43,\" ms\")","v":"4 ms"},4,"4 ms",4]
[null,null,null,null,null,null,null,null,"0x2F",47,null,null,null,null,null,null,"910 mV",910,null,"5 ms",5,"5 ms",5,null,null,null,null,null,null,null,null,null,{"$f":"CONCATENATE(AH44,\" ms\")","v":"5 ms"},5,{"$f":"CONCATENATE(AJ44,\" ms\")","v":"5 ms"},5,null,null,null,null,null,null,null,null,null,null,null,null,{"$f":"CONCATENATE(AX44,\" ms\")","v":"5 ms"},5,"5 ms",5,{"$f":"CONCATENATE(BB44,\" ms\")","v":"5 ms"},5,"5 ms",5]
[null,"GPIOs","GPO2 or CLKIN use","GPO2","GPO2 / CLKIN",null,null,null,"0x30",48,null,null,null,null,null,null,"915 mV",915,null,"6 ms",6,"6 ms",6,null,null,null,null,null,null,null,null,null,{"$f":"CONCATENATE(AH45,\" ms\")","v":"6 ms"},6,{"$f":"CONCATENATE(AJ45,\" ms\")","v":"6 ms"},6,null,null,null,null,null,null,null,null,null,null,null,null,{"$f":"CONCATENATE(AX45,\" ms\")","v":"6 ms"},6,"6 ms",6,{"$f":"CONCATENATE(BB45,\" ms\")","v":"6 ms"},6,"6 ms",6]
[null,null,"GPO Control and state","EN, high","EN / I2C, low / high (default state)",null,null,null,"0x31",49,null,null,null,null,null,null,"920 mV",920,null,"7 ms",7,"7 ms",7,null,null,null,null,null,null,null,null,null,{"$f":"CONCATENATE(AH46,\" ms\")","v":"7 ms"},7,{"$f":"CONCATENATE(AJ46,\" ms\")","v":"7 ms"},7,null,null,null,null,null,null,null,null,null,null,null,null,{"$f":"CONCATENATE(AX46,\" ms\")","v":"7 ms"},7,"7 ms",7,{"$f":"CONCATENATE(BB46,\" ms\")","v":"7 ms"},7,"7 ms",7]
[null,null,"GPO2 Control and state","EN, high",null,null,null,null,"0x32",50,null,null,null,null,null,null,"925 mV",925,null,"8 ms",8,"8 ms",8,null,null,null,null,null,null,null,null,null,{"$f":"CONCATENATE(AH47,\" ms\")","v":"8 ms"},8,{"$f":"CONCATENATE(AJ47,\" ms\")","v":"8 ms"},8,null,null,null,null,null,null,null,null,null,null,null,null,{"$f":"CONCATENATE(AX47,\" ms\")","v":"8 ms"},8,"8 ms",8,{"$f":"CONCATENATE(BB47,\" ms\")","v":"8 ms"},8,"8 ms",8]
[null,null,"GPO output type","OD","PP / OD",null,null,null,"0x33",51,null,null,null,null,null,null,"930 mV",930,null,"9 ms",9,"9 ms",9,null,null,null,null,null,null,null,null,null,{"$f":"CONCATENATE(AH48,\" ms\")","v":"9 ms"},9,{"$f":"CONCATENATE(AJ48,\" ms\")","v":"9 ms"},9,null,null,null,null,null,null,null,null,null,null,null,null,{"$f":"CONCATENATE(AX48,\" ms\")","v":"9 ms"},9,"9 ms",9,{"$f":"CONCATENATE(BB48,\" ms\")","v":"9 ms"},9,"9 ms",9]
[null,null,"GPO2 output type","OD","PP / OD",null,null,null,"0x34",52,null,null,null,null,null,null,"935 mV",935,null,"10 ms",10,"10 ms",10,null,null,null,null,null,null,null,null,null,{"$f":"CONCATENATE(AH49,\" ms\")","v":"10 ms"},10,{"$f":"CONCATENATE(AJ49,\" ms\")","v":"10 ms"},10,null,null,null,null,null,null,null,null,null,null,null,null,{"$f":"CONCATENATE(AX49,\" ms\")","v":"10 ms"},10,"10 ms",10,{"$f":"CONCATENATE(BB49,\" ms\")","v":"10 ms"},10,"10 ms",10]
[null,null,"GPO Startup delay","0 ms","0...15 ms / 0...7.5ms with EN signal",null,{"$f":"IF(OR(AND($D$10=\"15 ms\",RIGHT(LEFT(D50,2),1)=\".\"),AND($D$10=\"7.5 ms\",OR(LEFT(D50,1)=\"8\",LEFT(D50,1)=\"9\",LEFT(D50,2)=\"10\",LEFT(D50,2)=\"11\",LEFT(D50,2)=\"12\",LEFT(D50,2)=\"13\",LEFT(D50,2)=\"14\",LEFT(D50,2)=\"15\"))),\"INVALID\",\"\")","v":""},null,"0x35",53,null,null,null,null,null,null,"940 mV",940,null,"11 ms",11,"11 ms",11,null,null,null,null,null,null,null,null,null,{"$f":"CONCATENATE(AH50,\" ms\")","v":"11 ms"},11,{"$f":"CONCATENATE(AJ50,\" ms\")","v":"11 ms"},11,null,null,null,null,null,null,null,null,null,null,null,null,{"$f":"CONCATENATE(AX50,\" ms\")","v":"11 ms"},11,"11 ms",11,{"$f":"CONCATENATE(BB50,\" ms\")","v":"11 ms"},11,"11 ms",11]
[null,null,"GPO Shutdown delay","0 ms","0...15 ms / 0...7.5ms with EN signal",null,{"$f":"IF(OR(AND($D$11=\"15 ms\",RIGHT(LEFT(D51,2),1)=\".\"),AND($D$11=\"7.5 ms\",OR(LEFT(D51,1)=\"8\",LEFT(D51,1)=\"9\",LEFT(D51,2)=\"10\",LEFT(D51,2)=\"11\",LEFT(D51,2)=\"12\",LEFT(D51,2)=\"13\",LEFT(D51,2)=\"14\",LEFT(D51,2)=\"15\"))),\"INVALID\",\"\")","v":""},null,"0x36",54,null,null,null,null,null,null,"945 mV",945,null,"12 ms",12,"12 ms",12,null,null,null,null,null,null,null,null,null,{"$f":"CONCATENATE(AH51,\" ms\")","v":"12 ms"},12,{"$f":"CONCATENATE(AJ51,\" ms\")","v":"12 ms"},12,null,null,null,null,null,null,null,null,null,null,null,null,{"$f":"CONCATENATE(AX51,\" ms\")","v":"12 ms"},12,"12 ms",12,{"$f":"CONCATENATE(BB51,\" ms\")","v":"12 ms"},12,"12 ms",12]
[null,null,"GPO2 Startup delay","0 ms","0...15 ms / 0...7.5ms with EN signal",null,{"$f":"IF(OR(AND($D$10=\"15 ms\",RIGHT(LEFT(D52,2),1)=\".\"),AND($D$10=\"7.5 ms\",OR(LEFT(D52,1)=\"8\",LEFT(D52,1)=\"9\",LEFT(D52,2)=\"10\",LEFT(D52,2)=\"11\",LEFT(D52,2)=\"12\",LEFT(D52,2)=\"13\",LEFT(D52,2)=\"14\",LEFT(D52,2)=\"15\"))),\"INVALID\",\"\")","v":""},null,"0x37",55,null,null,null,null,null,null,"950 mV",950,null,"13 ms",13,"13 ms",13,null,null,null,null,null,null,null,null,null,{"$f":"CONCATENATE(AH52,\" ms\")","v":"13 ms"},13,{"$f":"CONCATENATE(AJ52,\" ms\")","v":"13 ms"},13,null,null,null,null,null,null,null,null,null,null,null,null,{"$f":"CONCATENATE(AX52,\" ms\")","v":"13 ms"},13,"13 ms",13,{"$f":"CONCATENATE(BB52,\" ms\")","v":"13 ms"},13,"13 ms",13]
[null,null,"GPO2 Shutdown delay","0 ms","0...15 ms / 0...7.5ms with EN signal",null,{"$f":"IF(OR(AND($D$11=\"15 ms\",RIGHT(LEFT(D53,2),1)=\".\"),AND($D$11=\"7.5 ms\",OR(LEFT(D53,1)=\"8\",LEFT(D53,1)=\"9\",LEFT(D53,2)=\"10\",LEFT(D53,2)=\"11\",LEFT(D53,2)=\"12\",LEFT(D53,2)=\"13\",LEFT(D53,2)=\"14\",LEFT(D53,2)=\"15\"))),\"INVALID\",\"\")","v":""},null,"0x39",57,null,null,null,null,null,null,"955 mV",955,null,"14 ms",14,"14 ms",14,null,null,null,null,null,null,null,null,null,{"$f":"CONCATENATE(AH53,\" ms\")","v":"14 ms"},14,{"$f":"CONCATENATE(AJ53,\" ms\")","v":"14 ms"},14,null,null,null,null,null,null,null,null,null,null,null,null,{"$f":"CONCATENATE(AX53,\" ms\")","v":"14 ms"},14,"14 ms",14,{"$f":"CONCATENATE(BB53,\" ms\")","v":"14 ms"},14,"14 ms",14]
[null,null,null,null,null,null,null,null,"0x3A",58,null,null,null,null,null,null,"960 mV",960,null,"15 ms",15,"15 ms",15,null,null,null,null,null,null,null,null,null,{"$f":"CONCATENATE(AH54,\" ms\")","v":"15 ms"},15,{"$f":"CONCATENATE(AJ54,\" ms\")","v":"15 ms"},15,null,null,null,null,null,null,null,null,null,null,null,null,{"$f":"CONCATENATE(AX54,\" ms\")","v":"15 ms"},15,"15 ms",15,{"$f":"CONCATENATE(BB54,\" ms\")","v":"15 ms"},15,"15 ms",15]
[null,"PGOOD","PGOOD Monitoring","No","No / B0, B1, L0, L1",null,null,null,"0x3B",59,null,null,null,null,null,null,"965 mV",965]
[null,null,"PGOOD Thresholds for Bucks","Window","Undervoltage / Window",null,null,null,"0x3C",60,null,null,null,null,null,null,"970 mV",970]
[null,null,"PGOOD Thresholds for LDOs","Window","Undervoltage / Window",null,null,null,"0x3D",61,null,null,null,null,null,null,"975 mV",975]
[null,null,"Thermal Warning for PGOOD","No","Active thermal warning setting PGOOD low, Yes/No",null,null,null,"0x3E",62,null,null,null,null,null,null,"980 mV",980]
[null,null,"PGOOD operating mode","UNVALID","Detecting UNUSUAL situations (gated mode) / Detecting UNVALID situations (continuous mode)",null,null,null,"0x3F",63,null,null,null,null,null,null,"985 mV",985]
[null,null,"PGOOD signal mode","Status","Status / Latched until fault source read (if gated mode is selected PGOOD is alway latched)",null,null,null,"0x40",64,null,null,null,null,null,null,"990 mV",990]
[null,null,"PGOOD output and polarity","OD, high","OD / PP, Active (power valid) high / low",null,null,null,{"$f":"CONCATENATE(\"0x\",DEC2HEX(J61))","v":"0x41"},65,null,null,null,null,null,null,"995 mV",995]
[null,null,null,null,null,null,null,null,"0x42",66,null,null,null,null,null,null,"1000 mV",1000]
[null,"Others","Thermal Warning level","140 C","125C / 140C (137C in data sheet)",null,null,null,"0x43",67,null,null,null,null,null,null,"1005 mV",1005]
[null,null,"Input Overvoltage Protection","Enabled","Enabled / Disabled",null,null,null,"0x44",68,null,null,null,null,null,null,"1010 mV",1010]
[null,null,"Spread spectrum with internal RC","Disabled","Enabled / Disabled",null,null,null,"0x45",69,null,null,null,null,null,null,"1015 mV",1015]
[null,null,"EN Pull Down resistor","Yes","Yes / No",null,null,null,"0x46",70,null,null,null,null,null,null,"1020 mV",1020]
[null,null,null,null,null,null,null,null,"0x47",71,null,null,null,null,null,null,"1025 mV",1025]
[null,"Interrupt\nMasks","PGOOD pin changing active to inactive","Masked","Masked / Unmasked",null,null,null,"0x48",72,null,null,null,null,null,null,"1030 mV",1030]
[null,null,"Sync Clock appears or disappears","Masked","Masked / Unmasked",null,null,null,"0x49",73,null,null,null,null,null,null,"1035 mV",1035]
[null,null,"Thermal warning","Masked","Masked / Unmasked",null,null,null,"0x4A",74,null,null,null,null,null,null,{"$f":"CONCATENATE(R70,\" mV\")","v":"1040 mV"},1040]
[null,null,"Load measurement ready","Masked","Masked / Unmasked",null,null,null,"0x4B",75,null,null,null,null,null,null,"1045 mV",1045]
[null,null,"Register Reset","Masked","Masked / Unmasked",null,null,null,"0x4C",76,null,null,null,null,null,null,"1050 mV",1050]
[null,null,"Buck0 PGood active","Masked","Masked / Unmasked",null,null,null,"0x4D",77,null,null,null,null,null,null,"1055 mV",1055]
[null,null,"Buck0 PGood inactive","Masked","Masked / Unmasked",null,null,null,"0x4E",78,null,null,null,null,null,null,"1060 mV",1060]
[null,null,"Buck0 Current limit","Masked","Masked / Unmasked",null,null,null,"0x4F",79,null,null,null,null,null,null,"1065 mV",1065]
[null,null,"Buck1 PGood active","Masked","Masked / Unmasked",null,null,null,"0x50",80,null,null,null,null,null,null,"1070 mV",1070]
[null,null,"Buck1 PGood inactive","Masked","Masked / Unmasked",null,null,null,"0x51",81,null,null,null,null,null,null,"1075 mV",1075]
[null,null,"Buck1 Current limit","Masked","Masked / Unmasked",null,null,null,"0x52",82,null,null,null,null,null,null,"1080 mV",1080]
[null,null,"LDO0 PGood active","Masked","Masked / Unmasked",null,null,null,"0x53",83,null,null,null,null,null,null,"1085 mV",1085]
[null,null,"LDO0 PGood inactive","Masked","Masked / Unmasked",null,null,null,"0x54",84,null,null,null,null,null,null,"1090 mV",1090]
[null,null,"LDO0 Current limit","Masked","Masked / Unmasked",null,null,null,"0x55",85,null,null,null,null,null,null,"1095 mV",1095]
[null,null,"LDO1 PGood active","Masked","Masked / Unmasked",null,null,null,"0x56",86,null,null,null,null,null,null,"1100 mV",1100]
[null,null,"LDO1 PGood inactive","Masked","Masked / Unmasked",null,null,null,"0x57",87,null,null,null,null,null,null,"1105 mV",1105]
[null,null,"LDO1 Current limit","Masked","Masked / Unmasked",null,null,null,"0x58",88,null,null,null,null,null,null,"1110 mV",1110]
[null,null,null,null,null,null,null,null,"0x59",89,null,null,null,null,null,null,"1115 mV",1115]
[null,null,null,null,null,null,null,null,"0x5A",90,null,null,null,null,null,null,"1120 mV",1120]
[null,null,null,null,null,null,null,null,"0x5B",91,null,null,null,null,null,null,"1125 mV",1125]
[null,null,null,null,null,null,null,null,"0x5C",92,null,null,null,null,null,null,"1130 mV",1130]
[null,null,null,null,null,null,null,null,"0x5D",93,null,null,null,null,null,null,"1135 mV",1135]
[null,null,null,null,null,null,null,null,"0x5E",94,null,null,null,null,null,null,"1140 mV",1140]
[null,null,null,null,null,null,null,null,"0x5F",95,null,null,null,null,null,null,"1145 mV",1145]
[null,null,null,null,null,null,null,null,"0x60",96,null,null,null,null,null,null,"1150 mV",1150]
[null,null,null,null,null,null,null,null,"0x61",97,null,null,null,null,null,null,"1155 mV",1155]
[null,null,null,null,null,null,null,null,"0x62",98,null,null,null,null,null,null,"1160 mV",1160]
[null,null,null,null,null,null,null,null,"0x63",99,null,null,null,null,null,null,"1165 mV",1165]
[null,null,null,null,null,null,null,null,"0x64",100,null,null,null,null,null,null,"1170 mV",1170]
[null,null,null,null,null,null,null,null,"0x65",101,null,null,null,null,null,null,"1175 mV",1175]
[null,null,null,null,null,null,null,null,"0x66",102,null,null,null,null,null,null,"1180 mV",1180]
[null,null,null,null,null,null,null,null,"0x67",103,null,null,null,null,null,null,"1185 mV",1185]
[null,null,null,null,null,null,null,null,"0x68",104,null,null,null,null,null,null,"1190 mV",1190]
[null,null,null,null,null,null,null,null,"0x69",105,null,null,null,null,null,null,"1195 mV",1195]
[null,null,null,null,null,null,null,null,"0x6A",106,null,null,null,null,null,null,"1200 mV",1200]
[null,null,null,null,null,null,null,null,"0x6B",107,null,null,null,null,null,null,"1205 mV",1205]
[null,null,null,null,null,null,null,null,"0x6C",108,null,null,null,null,null,null,"1210 mV",1210]
[null,null,null,null,null,null,null,null,"0x6D",109,null,null,null,null,null,null,"1215 mV",1215]
[null,null,null,null,null,null,null,null,"0x6E",110,null,null,null,null,null,null,"1220 mV",1220]
[null,null,null,null,null,null,null,null,"0x6F",111,null,null,null,null,null,null,"1225 mV",1225]
[null,null,null,null,null,null,null,null,"0x70",112,null,null,null,null,null,null,"1230 mV",1230]
[null,null,null,null,null,null,null,null,"0x71",113,null,null,null,null,null,null,"1235 mV",1235]
[null,null,null,null,null,null,null,null,"0x72",114,null,null,null,null,null,null,"1240 mV",1240]
[null,null,null,null,null,null,null,null,"0x73",115,null,null,null,null,null,null,"1245 mV",1245]
[null,null,null,null,null,null,null,null,"0x74",116,null,null,null,null,null,null,"1250 mV",1250]
[null,null,null,null,null,null,null,null,"0x75",117,null,null,null,null,null,null,"1255 mV",1255]
[null,null,null,null,null,null,null,null,"0x76",118,null,null,null,null,null,null,"1260 mV",1260]
[null,null,null,null,null,null,null,null,"0x77",119,null,null,null,null,null,null,"1265 mV",1265]
[null,null,null,null,null,null,null,null,null,null,null,null,null,null,null,null,"1270 mV",1270]
[null,null,null,null,null,null,null,null,null,null,null,null,null,null,null,null,"1275 mV",1275]
[null,null,null,null,null,null,null,null,null,null,null,null,null,null,null,null,"1280 mV",1280]
[null,null,null,null,null,null,null,null,null,null,null,null,null,null,null,null,"1285 mV",1285]
[null,null,null,null,null,null,null,null,null,null,null,null,null,null,null,null,"1290 mV",1290]
[null,null,null,null,null,null,null,null,null,null,null,null,null,null,null,null,"1295 mV",1295]
[null,null,null,null,null,null,null,null,null,null,null,null,null,null,null,null,"1300 mV",1300]
[null,null,null,null,null,null,null,null,null,null,null,null,null,null,null,null,"1305 mV",1305]
[null,null,null,null,null,null,null,null,null,null,null,null,null,null,null,null,"1310 mV",1310]
[null,null,null,null,null,null,null,null,null,null,null,null,null,null,null,null,"1315 mV",1315]
[null,null,null,null,null,null,null,null,null,null,null,null,null,null,null,null,"1320 mV",1320]
[null,null,null,null,null,null,null,null,null,null,null,null,null,null,null,null,"1325 mV",1325]
[null,null,null,null,null,null,null,null,null,null,null,null,null,null,null,null,"1330 mV",1330]
[null,null,null,null,null,null,null,null,null,null,null,null,null,null,null,null,"1335 mV",1335]
[null,null,null,null,null,null,null,null,null,null,null,null,null,null,null,null,"1340 mV",1340]
[null,null,null,null,null,null,null,null,null,null,null,null,null,null,null,null,"1345 mV",1345]
[null,null,null,null,null,null,null,null,null,null,null,null,null,null,null,null,"1350 mV",1350]
[null,null,null,null,null,null,null,null,null,null,null,null,null,null,null,null,"1355 mV",1355]
[null,null,null,null,null,null,null,null,null,null,null,null,null,null,null,null,{"$f":"CONCATENATE(R134,\" mV\")","v":"1360 mV"},1360]
[null,null,null,null,null,null,null,null,null,null,null,null,null,null,null,null,"1365 mV",1365]
[null,null,null,null,null,null,null,null,null,null,null,null,null,null,null,null,"1370 mV",1370]
[null,null,null,null,null,null,null,null,null,null,null,null,null,null,null,null,"1375 mV",1375]
[null,null,null,null,null,null,null,null,null,null,null,null,null,null,null,null,"1380 mV",1380]
[null,null,null,null,null,null,null,null,null,null,null,null,null,null,null,null,"1385 mV",1385]
[null,null,null,null,null,null,null,null,null,null,null,null,null,null,null,null,"1390 mV",1390]
[null,null,null,null,null,null,null,null,null,null,null,null,null,null,null,null,"1395 mV",1395]
[null,null,null,null,null,null,null,null,null,null,null,null,null,null,null,null,"1400 mV",1400]
[null,null,null,null,null,null,null,null,null,null,null,null,null,null,null,null,"1420 mV",1420]
[null,null,null,null,null,null,null,null,null,null,null,null,null,null,null,null,"1440 mV",1440]
[null,null,null,null,null,null,null,null,null,null,null,null,null,null,null,null,"1460 mV",1460]
[null,null,null,null,null,null,null,null,null,null,null,null,null,null,null,null,"1480 mV",1480]
[null,null,null,null,null,null,null,null,null,null,null,null,null,null,null,null,"1500 mV",1500]
[null,null,null,null,null,null,null,null,null,null,null,null,null,null,null,null,"1520 mV",1520]
[null,null,null,null,null,null,null,null,null,null,null,null,null,null,null,null,"1540 mV",1540]
[null,null,null,null,null,null,null,null,null,null,null,null,null,null,null,null,"1560 mV",1560]
[null,null,null,null,null,null,null,null,null,null,null,null,null,null,null,null,"1580 mV",1580]
[null,null,null,null,null,null,null,null,null,null,null,null,null,null,null,null,"1600 mV",1600]
[null,null,null,null,null,null,null,null,null,null,null,null,null,null,null,null,"1620 mV",1620]
[null,null,null,null,null,null,null,null,null,null,null,null,null,null,null,null,"1640 mV",1640]
[null,null,null,null,null,null,null,null,null,null,null,null,null,null,null,null,"1660 mV",1660]
[null,null,null,null,null,null,null,null,null,null,null,null,null,null,null,null,"1680 mV",1680]
[null,null,null,null,null,null,null,null,null,null,null,null,null,null,null,null,"1700 mV",1700]
[null,null,null,null,null,null,null,null,null,null,null,null,null,null,null,null,"1720 mV",1720]
[null,null,null,null,null,null,null,null,null,null,null,null,null,null,null,null,"1740 mV",1740]
[null,null,null,null,null,null,null,null,null,null,null,null,null,null,null,null,"1760 mV",1760]
[null,null,null,null,null,null,null,null,null,null,null,null,null,null,null,null,"1780 mV",1780]
[null,null,null,null,null,null,null,null,null,null,null,null,null,null,null,null,"1800 mV",1800]
[null,null,null,null,null,null,null,null,null,null,null,null,null,null,null,null,"1820 mV",1820]
[null,null,null,null,null,null,null,null,null,null,null,null,null,null,null,null,"1840 mV",1840]
[null,null,null,null,null,null,null,null,null,null,null,null,null,null,null,null,"1860 mV",1860]
[null,null,null,null,null,null,null,null,null,null,null,null,null,null,null,null,"1880 mV",1880]
[null,null,null,null,null,null,null,null,null,null,null,null,null,null,null,null,"1900 mV",1900]
[null,null,null,null,null,null,null,null,null,null,null,null,null,null,null,null,"1920 mV",1920]
[null,null,null,null,null,null,null,null,null,null,null,null,null,null,null,null,"1940 mV",1940]
[null,null,null,null,null,null,null,null,null,null,null,null,null,null,null,null,"1960 mV",1960]
[null,null,null,null,null,null,null,null,null,null,null,null,null,null,null,null,"1980 mV",1980]
[null,null,null,null,null,null,null,null,null,null,null,null,null,null,null,null,"2000 mV",2000]
[null,null,null,null,null,null,null,null,null,null,null,null,null,null,null,null,"2020 mV",2020]
[null,null,null,null,null,null,null,null,null,null,null,null,null,null,null,null,"2040 mV",2040]
[null,null,null,null,null,null,null,null,null,null,null,null,null,null,null,null,"2060 mV",2060]
[null,null,null,null,null,null,null,null,null,null,null,null,null,null,null,null,"2080 mV",2080]
[null,null,null,null,null,null,null,null,null,null,null,null,null,null,null,null,"2100 mV",2100]
[null,null,null,null,null,null,null,null,null,null,null,null,null,null,null,null,"2120 mV",2120]
[null,null,null,null,null,null,null,null,null,null,null,null,null,null,null,null,"2140 mV",2140]
[null,null,null,null,null,null,null,null,null,null,null,null,null,null,null,null,"2160 mV",2160]
[null,null,null,null,null,null,null,null,null,null,null,null,null,null,null,null,"2180 mV",2180]
[null,null,null,null,null,null,null,null,null,null,null,null,null,null,null,null,"2200 mV",2200]
[null,null,null,null,null,null,null,null,null,null,null,null,null,null,null,null,"2220 mV",2220]
[null,null,null,null,null,null,null,null,null,null,null,null,null,null,null,null,"2240 mV",2240]
[null,null,null,null,null,null,null,null,null,null,null,null,null,null,null,null,"2260 mV",2260]
[null,null,null,null,null,null,null,null,null,null,null,null,null,null,null,null,"2280 mV",2280]
[null,null,null,null,null,null,null,null,null,null,null,null,null,null,null,null,"2300 mV",2300]
[null,null,null,null,null,null,null,null,null,null,null,null,null,null,null,null,"2320 mV",2320]
[null,null,null,null,null,null,null,null,null,null,null,null,null,null,null,null,"2340 mV",2340]
[null,null,null,null,null,null,null,null,null,null,null,null,null,null,null,null,"2360 mV",2360]
[null,null,null,null,null,null,null,null,null,null,null,null,null,null,null,null,"2380 mV",2380]
[null,null,null,null,null,null,null,null,null,null,null,null,null,null,null,null,"2400 mV",2400]
[null,null,null,null,null,null,null,null,null,null,null,null,null,null,null,null,"2420 mV",2420]
[null,null,null,null,null,null,null,null,null,null,null,null,null,null,null,null,"2440 mV",2440]
[null,null,null,null,null,null,null,null,null,null,null,null,null,null,null,null,"2460 mV",2460]
[null,null,null,null,null,null,null,null,null,null,null,null,null,null,null,null,"2480 mV",2480]
[null,null,null,null,null,null,null,null,null,null,null,null,null,null,null,null,"2500 mV",2500]
[null,null,null,null,null,null,null,null,null,null,null,null,null,null,null,null,{"$f":"CONCATENATE(R198,\" mV\")","v":"2520 mV"},2520]
[null,null,null,null,null,null,null,null,null,null,null,null,null,null,null,null,"2540 mV",2540]
[null,null,null,null,null,null,null,null,null,null,null,null,null,null,null,null,"2560 mV",2560]
[null,null,null,null,null,null,null,null,null,null,null,null,null,null,null,null,"2580 mV",2580]
[null,null,null,null,null,null,null,null,null,null,null,null,null,null,null,null,"2600 mV",2600]
[null,null,null,null,null,null,null,null,null,null,null,null,null,null,null,null,"2620 mV",2620]
[null,null,null,null,null,null,null,null,null,null,null,null,null,null,null,null,"2640 mV",2640]
[null,null,null,null,null,null,null,null,null,null,null,null,null,null,null,null,"2660 mV",2660]
[null,null,null,null,null,null,null,null,null,null,null,null,null,null,null,null,"2680 mV",2680]
[null,null,null,null,null,null,null,null,null,null,null,null,null,null,null,null,"2700 mV",2700]
[null,null,null,null,null,null,null,null,null,null,null,null,null,null,null,null,"2720 mV",2720]
[null,null,null,null,null,null,null,null,null,null,null,null,null,null,null,null,"2740 mV",2740]
[null,null,null,null,null,null,null,null,null,null,null,null,null,null,null,null,"2760 mV",2760]
[null,null,null,null,null,null,null,null,null,null,null,null,null,null,null,null,"2780 mV",2780]
[null,null,null,null,null,null,null,null,null,null,null,null,null,null,null,null,"2800 mV",2800]
[null,null,null,null,null,null,null,null,null,null,null,null,null,null,null,null,"2820 mV",2820]
[null,null,null,null,null,null,null,null,null,null,null,null,null,null,null,null,"2840 mV",2840]
[null,null,null,null,null,null,null,null,null,null,null,null,null,null,null,null,"2860 mV",2860]
[null,null,null,null,null,null,null,null,null,null,null,null,null,null,null,null,"2880 mV",2880]
[null,null,null,null,null,null,null,null,null,null,null,null,null,null,null,null,"2900 mV",2900]
[null,null,null,null,null,null,null,null,null,null,null,null,null,null,null,null,"2920 mV",2920]
[null,null,null,null,null,null,null,null,null,null,null,null,null,null,null,null,"2940 mV",2940]
[null,null,null,null,null,null,null,null,null,null,null,null,null,null,null,null,"2960 mV",2960]
[null,null,null,null,null,null,null,null,null,null,null,null,null,null,null,null,"2980 mV",2980]
[null,null,null,null,null,null,null,null,null,null,null,null,null,null,null,null,"3000 mV",3000]
[null,null,null,null,null,null,null,null,null,null,null,null,null,null,null,null,"3020 mV",3020]
[null,null,null,null,null,null,null,null,null,null,null,null,null,null,null,null,"3040 mV",3040]
[null,null,null,null,null,null,null,null,null,null,null,null,null,null,null,null,"3060 mV",3060]
[null,null,null,null,null,null,null,null,null,null,null,null,null,null,null,null,"3080 mV",3080]
[null,null,null,null,null,null,null,null,null,null,null,null,null,null,null,null,"3100 mV",3100]
[null,null,null,null,null,null,null,null,null,null,null,null,null,null,null,null,"3120 mV",3120]
[null,null,null,null,null,null,null,null,null,null,null,null,null,null,null,null,"3140 mV",3140]
[null,null,null,null,null,null,null,null,null,null,null,null,null,null,null,null,"3160 mV",3160]
[null,null,null,null,null,null,null,null,null,null,null,null,null,null,null,null,"3180 mV",3180]
[null,null,null,null,null,null,null,null,null,null,null,null,null,null,null,null,"3200 mV",3200]
[null,null,null,null,null,null,null,null,null,null,null,null,null,null,null,null,"3220 mV",3220]
[null,null,null,null,null,null,null,null,null,null,null,null,null,null,null,null,"3240 mV",3240]
[null,null,null,null,null,null,null,null,null,null,null,null,null,null,null,null,"3260 mV",3260]
[null,null,null,null,null,null,null,null,null,null,null,null,null,null,null,null,"3280 mV",3280]
[null,null,null,null,null,null,null,null,null,null,null,null,null,null,null,null,"3300 mV",3300]
[null,null,null,null,null,null,null,null,null,null,null,null,null,null,null,null,"3320 mV",3320]
[null,null,null,null,null,null,null,null,null,null,null,null,null,null,null,null,"3340 mV",3340]
[null,null,null,null,null,null,null,null,null,null,null,null,null,null,null,null,"3360 mV",3360]